bitfinex-derivatives/quotes_ETHF0:USTF0_20241207
["timestamp","ask_amount","ask_price","bid_price","bid_amount"]
[1733586653717,4.50069537,4005.7,4005.6,0.17458]
[1733586654118,4.67527537,4005.7,4005.5,0.17459]
[1733586654420,0.17459,4005.5,4005.3,0.17459]
[1733586654632,1.35177325,4005.4,4005.3,0.17459]
[1733586655522,0.89807325,4005.4,4005.3,0.17459]
[1733586662430,2.93262212,4005.5,4005.4,0.17459]
[1733586662625,3.60262212,4005.5,4005.4,0.17459]
[1733586663927,0.67,4005.5,4005.4,0.17459]
[1733586664835,3.60262212,4005.5,4005.4,0.17459]
[1733586665033,3.60262212,4005.6,4005.5,0.17459]
[1733586665237,2.93262212,4005.7,4005.6,0.17458]
[1733586665426,1.0972,4005.8,4005.3,1.3085]
[1733586665427,4.02982212,4005.8,4005.3,1.3085]
[1733586665634,3.60262212,4005.8,4005.7,0.17458]
[1733586666336,3.60262212,4005.8,4005.3,0.872]
[1733586666538,0.1746,4005.3,4005.2,0.1746]
[1733586666831,4.59866437,4005.8,4005.2,0.1746]
[1733586666832,2.93262212,4005.7,4005.2,0.89807325]
[1733586667030,3.60262212,4005.8,4005.2,0.89807325]
[1733586667333,3.60262212,4005.8,4005.1,0.4554]
[1733586667334,0.17459,4005.6,4005.1,0.4554]
[1733586667643,2.93262212,4005.6,4005.5,0.17458]
[1733586667936,4.00527537,4005.7,4005.1,0.4554]
[1733586668133,0.67,4005.8,4005.1,0.4554]
[1733586668333,2.93617588,4005.7,4005.3,0.4365]
[1733586668635,3.60595793,4005.8,4005.7,0.17458]
[1733586668836,3.6060074,4005.8,4005.7,0.17458]
[1733586669135,0.67,4005.8,4005.7,0.17458]
[1733586669335,3.6060074,4005.8,4005.7,0.17458]
[1733586669635,2.9360074,4005.8,4005.7,0.17458]
[1733586669840,6.8138074,4005.9,4005.8,0.17458]
[1733586671042,7.71188065,4005.9,4005.8,0.17458]
[1733586671345,7.71129499,4005.9,4005.8,0.17458]
[1733586672743,7.71129499,4005.9,4005.4,0.4586]
[1733586673046,0.17459,4005.5,4005.4,0.17459]
[1733586673448,4.00808499,4005.6,4005.4,0.17459]
[1733586673638,0.17459,4005.5,4005.4,0.17459]
[1733586673837,3.83349499,4005.6,4005.3,0.17459]
[1733586674042,0.1746,4005.2,4005.0,0.17461]
[1733586674246,0.67,4005.2,4004.6,1.35467325]
[1733586674450,0.8446,4005.2,4005.1,0.17461]
[1733586674645,0.67,4005.2,4005.1,0.17461]
[1733586675146,0.67,4005.2,4004.9,0.89807325]
[1733586675348,3.60542174,4005.2,4004.9,0.89807325]
[1733586675544,3.78003174,4005.2,4005.0,0.17461]
[1733586675939,3.78002174,4005.2,4004.7,0.437]
[1733586676138,0.67,4005.2,4005.1,0.17461]
[1733586676349,0.67,4005.2,4004.7,0.437]
[1733586676350,0.8446,4005.2,4004.8,0.17462]
[1733586676548,0.8446,4005.2,4004.7,0.437]
[1733586677150,0.8446,4005.2,4005.0,0.17461]
[1733586677552,0.8446,4005.2,4004.7,0.437]
[1733586677752,3.38241,4005.1,4005.0,0.17461]
[1733586678256,3.2078,4005.1,4005.0,0.17461]
[1733586678750,3.38241,4005.1,4004.9,0.17461]
[1733586679049,0.4269,4005.0,4004.9,0.17461]
[1733586680657,3.2078,4005.1,4005.0,0.17461]
[1733586682954,0.67,4005.5,4005.4,0.17459]
[1733586683156,3.60542174,4005.7,4005.6,0.17458]
[1733586683956,0.67,4005.7,4005.6,0.17458]
[1733586684453,3.60542174,4005.7,4005.6,0.17458]
[1733586684649,3.2078,4005.9,4005.5,0.4317]
[1733586684650,2.93542174,4005.8,4005.5,0.4317]
[1733586684854,2.93542174,4005.8,4005.7,0.17458]
[1733586685447,3.2078,4005.9,4005.8,0.17458]
[1733586686250,7.13646437,4005.9,4005.8,0.17458]
[1733586688355,3.2078,4005.9,4005.8,0.17458]
[1733586689256,0.61604,4006.7,4005.8,18.1]
[1733586689257,2.94004443,4006.2,4005.8,18.1]
[1733586689452,2.94004443,4006.2,4006.1,0.89807325]
[1733586689453,2.94008053,4006.2,4006.1,0.89807325]
[1733586689659,2.94008053,4006.3,4006.1,0.89807325]
[1733586689959,2.94008053,4006.3,4006.2,0.60346]
[1733586690355,3.2078,4006.4,4006.2,0.4289]
[1733586690557,2.94030946,4006.3,4006.2,0.60346]
[1733586690955,6.14810946,4006.4,4006.2,0.4289]
[1733586691159,6.14740202,4006.4,4006.3,0.17455]
[1733586691355,3.2078,4006.4,4006.3,0.17455]
[1733586691555,6.14810472,4006.4,4006.3,0.17455]
[1733586691754,3.2078,4006.4,4006.3,0.17455]
[1733586692164,6.14758923,4006.4,4006.3,0.17455]
[1733586692352,3.6665,4006.4,4006.3,0.17455]
[1733586693156,6.6063443,4006.4,4006.3,0.17455]
[1733586693566,3.6665,4006.4,4006.3,0.17455]
[1733586694268,0.4587,4006.4,4006.3,0.17455]
[1733586695564,0.4587,4006.4,4006.0,0.89807325]
[1733586695762,2.93940049,4006.3,4006.2,0.17456]
[1733586698663,2.93940049,4006.3,4006.0,0.89807325]
[1733586698664,0.17456,4006.2,4006.1,0.17456]
[1733586698865,3.37840049,4006.2,4006.1,0.17456]
[1733586699262,2.93940049,4006.2,4006.1,0.17456]
[1733586699565,4.37894964,4006.4,4006.3,0.17455]
[1733586699566,3.39810049,4006.4,4006.3,0.17455]
[1733586699764,2.93940049,4006.4,4006.3,1.07262325]
[1733586699971,6.14720049,4006.5,4006.4,0.17455]
[1733586700366,6.14720049,4006.5,4006.4,0.63505]
[1733586700572,6.32175049,4006.5,4006.4,0.63505]
[1733586700767,6.14720049,4006.5,4006.4,0.63505]
[1733586701069,6.32175049,4006.5,4006.4,0.63505]
[1733586701471,6.14720049,4006.5,4006.4,0.63505]
[1733586701670,6.14720049,4006.5,4006.4,0.4605]
[1733586701870,6.14720049,4006.5,4006.2,0.17455]
[1733586702165,6.14720049,4006.5,4006.0,0.8983]
[1733586702370,0.17456,4006.1,4006.0,0.8983]
[1733586702673,0.17456,4006.2,4006.0,0.8983]
[1733586702875,0.17456,4006.2,4006.0,1.07286]
[1733586703076,0.4175,4006.1,4006.0,1.07287]
[1733586703774,2.93940049,4006.6,4006.4,0.17455]
[1733586703963,2.93940049,4007.0,4006.4,0.89807325]
[1733586704271,0.8488,4007.1,4006.8,0.17453]
[1733586704272,3.96272049,4007.1,4006.8,0.17453]
[1733586704473,3.78820049,4007.1,4006.8,0.17453]
[1733586704771,0.8488,4007.1,4006.9,0.432]
[1733586704973,3.96272049,4007.1,4006.9,0.432]
[1733586705174,3.78820049,4007.1,4006.9,0.432]
[1733586705375,0.8488,4007.1,4006.9,0.432]
[1733586705775,0.8488,4007.1,4007.0,0.17452]
[1733586705969,1.5178,4007.1,4006.9,0.432]
[1733586706170,1.5178,4007.1,4006.9,0.60652]
[1733586706377,1.5178,4007.1,4006.9,0.432]
[1733586706669,1.5178,4007.1,4006.9,0.60653]
[1733586706876,1.5178,4007.1,4006.9,0.432]
[1733586707078,1.5178,4007.1,4006.8,0.4607]
[1733586707269,4.45720049,4007.1,4006.4,0.89807325]
[1733586707573,4.63172049,4007.1,4006.7,1.07260325]
[1733586707974,1.69232,4007.1,4006.7,0.89807325]
[1733586708175,4.45720049,4007.1,4006.8,0.17453]
[1733586708363,4.63172049,4007.1,4006.8,0.17453]
[1733586708566,4.45720049,4007.1,4006.8,0.17453]
[1733586708970,4.63172049,4007.1,4006.8,0.17453]
[1733586710167,4.45720049,4007.1,4006.8,0.17453]
[1733586710671,0.17453,4007.0,4006.7,0.89807325]
[1733586711073,4.63172049,4007.1,4006.7,1.07260325]
[1733586711779,0.17452,4007.0,4006.7,1.07260325]
[1733586712077,4.63172049,4007.1,4006.8,0.17453]
[1733586712576,4.45720049,4007.1,4006.7,0.89807325]
[1733586712782,4.45720049,4007.1,4006.9,0.17453]
[1733586712976,4.45720049,4007.1,4006.8,0.17453]
[1733586713574,1.5178,4007.1,4006.9,0.17453]
[1733586715382,3.2078,4007.2,4007.0,0.89807325]
[1733586715579,3.2078,4007.2,4007.1,0.59832]
[1733586715783,3.2078,4007.2,4007.1,1.46672]
[1733586717283,3.2078,4007.2,4006.1,21.74421]
[1733586717480,0.17453,4007.0,4006.2,1.2996]
[1733586717682,3.2078,4007.2,4006.2,1.2996]
[1733586717683,0.59443,4006.9,4006.7,0.17453]
[1733586717987,0.4199,4006.9,4006.7,0.17453]
[1733586718181,0.4422,4006.8,4006.7,0.17453]
[1733586719883,0.17454,4006.7,4006.5,0.89807325]
[1733586720077,0.4422,4006.8,4006.5,0.89807325]
[1733586720279,0.61673,4006.8,4006.6,0.17454]
[1733586720491,0.4422,4006.8,4006.5,0.89807325]
[1733586720688,0.17454,4006.7,4006.6,0.17454]
[1733586720986,0.4422,4006.8,4006.5,0.89807325]
[1733586721187,3.2078,4006.7,4006.3,0.89807325]
[1733586721377,3.2078,4006.7,4006.5,0.17454]
[1733586721579,0.17454,4006.6,4006.5,0.17454]
[1733586722590,3.2078,4006.7,4006.5,0.17454]
[1733586722795,0.17454,4006.6,4006.5,0.17454]
[1733586723091,3.38234,4006.7,4006.5,0.17454]
[1733586723391,0.17454,4006.6,4006.4,0.17455]
[1733586723893,3.2078,4006.7,4006.3,0.89807325]
[1733586724085,2.93940049,4006.6,4006.0,0.17456]
[1733586724392,3.2078,4006.2,4005.7,1.49328]
[1733586724693,0.17457,4005.9,4005.7,0.17458]
[1733586724991,4.02840049,4006.1,4005.6,3.2078]
[1733586724992,0.17458,4005.8,4005.6,3.2078]
[1733586725185,2.93940049,4006.0,4005.5,18.99807325]
[1733586725695,3.11398049,4005.9,4005.6,0.17458]
[1733586725987,2.93940049,4005.9,4005.5,18.1]
[1733586726190,2.93940049,4005.9,4005.2,2.22847325]
[1733586726191,3.2078,4005.6,4005.2,2.22847325]
[1733586726392,3.2078,4005.6,4005.2,0.89807325]
[1733586726687,0.1746,4005.4,4005.1,0.1746]
[1733586726892,3.11400049,4005.4,4005.1,0.1746]
[1733586727193,2.93940049,4005.4,4004.7,1.3386]
[1733586727389,1.1098,4005.5,4004.8,0.17462]
[1733586727390,3.38241,4005.1,4004.8,0.17462]
[1733586727588,6.32181049,4005.1,4004.8,0.17462]
[1733586728287,3.38241,4005.1,4004.8,0.17462]
[1733586728488,6.14720049,4005.1,4005.0,0.17461]
[1733586728692,3.2078,4005.1,4005.0,0.17461]
[1733586730791,0.17461,4005.0,4004.7,0.4598]
[1733586730995,3.11402049,4004.8,4004.4,0.17463]
[1733586731295,3.11138049,4004.6,4004.1,0.4596]
[1733586731589,5.03294964,4004.9,4003.7,18.1]
[1733586731590,6.58145049,4004.5,4003.7,18.1]
[1733586731791,3.2078,4003.8,4003.7,18.1]
[1733586731987,3.2078,4003.8,4003.7,18.27467]
[1733586732597,3.2078,4003.8,4003.7,0.17467]
[1733586734700,0.669,4004.0,4003.6,2.83833026]
[1733586734895,3.2078,4004.4,4004.3,0.17464]
[1733586735196,3.2078,4004.4,4003.7,0.43668]
[1733586735197,0.669,4004.9,4004.1,1.94483026]
[1733586735401,0.669,4004.9,4004.8,0.17462]
[1733586735988,0.669,4004.9,4004.8,18.1]
[1733586736295,0.669,4004.9,4004.8,18.27462]
[1733586736600,0.669,4004.9,4004.8,0.17462]
[1733586737696,3.37765049,4005.7,4005.4,0.17459]
[1733586737697,3.2078,4005.5,4005.4,0.17459]
[1733586737992,3.8768,4005.5,4005.4,0.17459]
[1733586740897,3.2078,4005.5,4005.4,0.17459]
[1733586742801,3.2078,4006.1,4006.0,0.17457]
[1733586743102,0.669,4006.2,4006.1,0.17456]
[1733586743298,0.669,4006.2,4005.7,0.43645]
[1733586743500,0.669,4006.2,4006.1,0.17456]
[1733586743796,4.1088,4006.7,4006.6,0.17454]
[1733586743998,4.7778,4006.7,4006.6,0.17454]
[1733586748607,3.2078,4006.7,4006.6,0.17454]
[1733586756006,3.2078,4006.7,4006.5,0.17455]
[1733586756208,3.2078,4006.7,4006.4,0.17455]
[1733586756209,0.4446,4006.6,4006.4,0.17455]
[1733586756402,1.0958,4006.5,4006.4,0.17455]
[1733586757010,1.0958,4006.5,4005.7,1.30356]
[1733586757204,3.2078,4006.0,4005.9,0.17457]
[1733586759113,4.3036,4006.5,4006.4,0.17455]
[1733586763608,4.47815,4006.5,4006.2,0.17456]
[1733586763808,4.47815,4006.5,4005.7,0.8671]
[1733586764008,3.2078,4006.0,4005.7,0.8671]
[1733586764317,3.2078,4006.0,4005.9,0.17457]
[1733586768012,3.2078,4006.0,4005.9,18.27457]
[1733586768714,3.2078,4006.0,4005.9,0.17457]
[1733586774317,3.8768,4006.5,4005.7,1.94483026]
[1733586774520,3.8768,4006.5,4006.4,0.17455]
[1733586776221,3.2078,4006.5,4006.4,0.17455]
[1733586776418,3.8768,4006.5,4006.4,0.17455]
[1733586776612,3.2078,4006.5,4006.4,0.17455]
[1733586776815,0.669,4006.8,4006.1,2.39333026]
[1733586777122,0.669,4006.8,4006.7,0.17454]
[1733586780317,3.60575049,4006.8,4006.7,0.17454]
[1733586781213,0.669,4006.8,4006.7,0.17454]
[1733586781419,3.6064517,4006.8,4006.7,0.17454]
[1733586781823,0.669,4006.8,4006.7,0.17454]
[1733586783428,4.58924964,4006.8,4006.7,0.17454]
[1733586785226,0.669,4006.8,4006.7,0.17454]
[1733586786025,4.58980378,4006.8,4006.7,0.17454]
[1733586786221,0.669,4006.8,4006.7,0.17454]
[1733586788724,1.086,4006.9,4006.8,0.17453]
[1733586791931,5.99683047,4006.9,4006.8,0.17453]
[1733586792231,1.086,4006.9,4006.8,0.17453]
[1733586793523,1.086,4006.9,4005.5,3.91455234]
[1733586793524,7.18646688,4006.9,4005.5,3.91455234]
[1733586793723,3.9237415,4005.8,4005.4,0.43648]
[1733586794027,2.94293713,4005.6,4005.5,0.17459]
[1733586796229,2.94293713,4005.8,4005.3,4.81146041]
[1733586796530,2.94293713,4005.9,4005.6,1.94386277]
[1733586796738,2.94293713,4005.9,4005.8,0.17458]
[1733586797031,2.94181523,4005.9,4005.7,0.4192]
[1733586797335,2.94181523,4005.9,4005.8,0.60528]
[1733586798032,3.9237415,4006.3,4005.8,0.4307]
[1733586798238,7.1315415,4006.5,4006.4,0.17455]
[1733586798535,7.8005415,4006.5,4006.4,0.17455]
[1733586799324,3.8768,4006.5,4006.4,0.17455]
[1733586799727,7.8005415,4006.5,4006.4,0.17455]
[1733586801127,3.8768,4006.5,4006.4,0.17455]
[1733586801331,7.8005415,4006.5,4006.4,0.17455]
[1733586802831,7.1315415,4006.5,4006.4,0.17455]
[1733586808634,3.9237415,4006.5,4006.4,0.17455]
[1733586809235,4.59190816,4006.6,4006.5,0.17455]
[1733586809435,0.669,4006.6,4006.5,0.17455]
[1733586814945,5.57367688,4006.6,4006.5,0.17455]
[1733586817645,6.00387688,4006.6,4006.5,0.17455]
[1733586818040,1.0992,4006.6,4006.5,0.17455]
[1733586818653,5.57453138,4006.6,4006.5,0.17455]
[1733586818949,0.669,4006.6,4006.5,0.17455]
[1733586819148,5.34183138,4006.8,4006.7,0.17454]
[1733586819349,1.1053,4006.8,4006.7,0.17454]
[1733586820050,6.01083138,4006.8,4006.7,0.17454]
[1733586820848,1.1053,4006.8,4006.7,0.17454]
[1733586821250,6.9079977,4006.8,4006.0,0.43642]
[1733586821452,3.92433447,4006.6,4006.2,0.17456]
[1733586821647,3.92433447,4006.6,4006.5,0.17455]
[1733586826752,4.59333447,4006.6,4006.5,0.17455]
[1733586830853,0.669,4006.6,4006.5,0.17455]
[1733586831359,1.1208,4006.6,4006.5,0.17455]
[1733586832255,0.669,4006.6,4006.5,0.17455]
[1733586834156,0.669,4006.6,4006.0,4.35155234]
[1733586834360,0.669,4006.6,4006.2,0.17456]
[1733586834361,3.92469134,4006.3,4006.2,0.17456]
[1733586834560,9.0104977,4006.4,4006.0,0.437]
[1733586834857,5.35343138,4006.2,4006.1,0.17456]
[1733586835055,5.52799138,4006.2,4006.1,0.17456]
[1733586835361,5.52799138,4006.2,4006.0,0.17456]
[1733586835958,5.35343138,4006.2,4005.9,0.17457]
[1733586836156,3.9249851,4006.0,4005.8,0.4407]
[1733586836364,7.8017851,4005.9,4005.8,0.61528]
[1733586836757,3.8768,4005.9,4005.8,0.61528]
[1733586836956,7.8017851,4005.9,4005.8,0.61528]
[1733586837759,0.17458,4005.8,4005.6,0.17458]
[1733586837951,4.82228363,4005.7,4005.6,0.17458]
[1733586838155,4.82228363,4005.7,4005.3,0.8907]
[1733586838156,0.89716632,4005.7,4005.3,0.8907]
[1733586838357,3.92449093,4005.4,4005.3,1.06529]
[1733586839168,3.92449093,4005.5,4005.3,0.8907]
[1733586839363,3.92449093,4005.5,4005.4,0.17459]
[1733586839558,7.13229093,4005.5,4005.4,0.17459]
[1733586840164,3.2078,4005.5,4004.8,3.91455234]
[1733586840468,4.82097777,4005.4,4004.8,0.89716632]
[1733586840662,0.669,4005.3,4005.2,0.1746]
[1733586840967,4.59281145,4005.3,4005.2,0.1746]
[1733586841558,0.669,4005.3,4005.2,0.1746]
[1733586841763,0.669,4005.3,4005.1,0.1746]
[1733586841959,0.669,4005.3,4005.2,0.1746]
[1733586847267,3.2078,4005.5,4005.4,0.17459]
[1733586847459,3.8758,4005.5,4005.4,0.17459]
[1733586847865,4.05039,4005.5,4005.4,0.17459]
[1733586848062,3.8758,4005.5,4005.4,0.17459]
[1733586848361,3.92381145,4005.7,4005.3,0.89716632]
[1733586848562,3.2078,4006.1,4006.0,0.17457]
[1733586848959,4.83321145,4006.3,4006.2,0.17456]
[1733586849156,1.5774,4006.3,4006.2,0.17456]
[1733586849555,5.50121145,4006.3,4006.1,0.17456]
[1733586849763,0.89716632,4006.2,4006.1,0.17456]
[1733586850164,4.59181145,4006.6,4005.9,0.89716632]
[1733586850463,4.59181145,4006.6,4005.7,3.64425]
[1733586850464,0.668,4006.6,4006.5,0.17455]
[1733586851762,0.668,4006.6,4006.4,0.17455]
[1733586851966,0.668,4006.6,4006.0,1.3252]
[1733586852166,0.668,4006.6,4006.4,0.17455]
[1733586852660,0.668,4006.6,4006.5,0.17455]
[1733586853065,0.668,4006.6,4006.4,0.17455]
[1733586856070,0.668,4006.6,4006.0,1.3252]
[1733586856369,7.59031145,4006.8,4006.7,0.17454]
[1733586856566,4.3345,4006.8,4006.7,0.17454]
[1733586858581,4.3345,4006.8,4006.6,0.17454]
[1733586858878,0.89716632,4006.7,4006.6,0.17454]
[1733586859264,3.83502257,4006.7,4006.6,0.17454]
[1733586859869,2.93785625,4006.7,4006.6,0.17454]
[1733586860074,3.60585625,4006.7,4006.6,0.17454]
[1733586863775,0.668,4006.7,4006.6,0.17454]
[1733586864181,3.60585625,4006.7,4006.6,0.17454]
[1733586865077,0.668,4006.7,4006.6,0.17454]
[1733586865379,3.39655625,4006.8,4006.7,0.17454]
[1733586865574,4.06455625,4006.8,4006.7,0.17454]
[1733586865775,4.06455625,4006.8,4006.4,0.89716632]
[1733586865979,2.93753119,4006.7,4006.4,0.89716632]
[1733586866280,6.14533119,4006.7,4006.4,0.89716632]
[1733586867180,2.93753119,4006.6,4006.4,0.89716632]
[1733586869477,2.93753119,4006.6,4006.1,0.89716632]
[1733586872883,0.4183,4006.5,4006.1,0.89716632]
[1733586873579,3.35583119,4006.5,4006.1,0.89716632]
[1733586873975,4.02383119,4006.5,4006.1,0.89716632]
[1733586875981,5.09554751,4006.5,4006.0,0.4514]
[1733586876283,2.93753119,4006.3,4006.0,0.4514]
[1733586876688,0.8818,4006.2,4006.0,0.4514]
[1733586876877,0.668,4006.3,4006.0,0.62597]
[1733586877077,3.60553119,4006.3,4006.1,0.17456]
[1733586877278,3.60553119,4006.3,4006.1,0.8864]
[1733586877476,0.668,4006.3,4006.1,0.8864]
[1733586877673,3.60553119,4006.3,4006.1,0.8864]
[1733586878379,0.668,4006.3,4006.1,1.78356632]
[1733586878581,0.668,4006.3,4006.1,1.95812632]
[1733586878774,0.668,4006.3,4006.1,1.78356632]
[1733586878975,2.93753119,4006.4,4006.1,1.78356632]
[1733586879281,2.93753119,4006.3,4006.1,1.95812632]
[1733586879484,3.60553119,4006.4,4006.1,1.95812632]
[1733586879685,2.93753119,4006.3,4006.1,1.95812632]
[1733586881176,2.93753119,4006.3,4006.1,1.78356632]
[1733586881389,2.93753119,4006.3,4006.1,1.95812632]
[1733586881680,3.60553119,4006.4,4006.1,1.95812632]
[1733586882701,2.93753119,4006.3,4006.1,1.95812632]
[1733586882885,3.60553119,4006.4,4006.1,1.95812632]
[1733586883485,2.93753119,4006.3,4006.2,0.17456]
[1733586883883,3.60553119,4006.4,4006.2,0.17456]
[1733586884087,2.93753119,4006.3,4006.2,0.17456]
[1733586885087,3.60553119,4006.4,4006.3,0.17455]
[1733586885585,0.668,4006.4,4006.3,0.17455]
[1733586887085,2.93923149,4006.4,4006.3,0.17455]
[1733586887281,0.89716632,4007.5,4006.1,1.33706632]
[1733586887282,2.93923149,4006.7,4006.6,0.17454]
[1733586887482,2.93923149,4006.9,4006.8,0.17453]
[1733586887683,7.79961145,4007.1,4006.9,0.17453]
[1733586887684,2.93923149,4007.0,4006.9,0.17453]
[1733586888586,4.3062,4007.1,4007.0,0.17452]
[1733586889287,3.6382,4007.1,4007.0,0.17452]
[1733586889496,4.3062,4007.1,4007.0,0.17452]
[1733586889694,8.23001145,4007.1,4007.0,0.17452]
[1733586890787,4.3062,4007.1,4006.7,0.17453]
[1733586891089,3.9203981,4006.9,4006.8,0.17453]
[1733586891393,4.5883981,4007.0,4006.9,0.17453]
[1733586892400,0.668,4007.0,4006.9,0.17453]
[1733586893002,4.5900885,4007.0,4006.9,0.17453]
[1733586893304,0.668,4007.0,4006.9,0.17453]
[1733586895807,5.57353138,4007.0,4006.9,0.17453]
[1733586896505,0.668,4007.0,4006.9,0.17453]
[1733586898699,8.11333138,4007.1,4007.0,0.17452]
[1733586898902,3.2078,4007.1,4007.0,1.07168632]
[1733586899107,3.92339834,4007.2,4007.0,0.89716632]
[1733586899307,3.92339834,4007.2,4007.1,0.17452]
[1733586899505,3.92339834,4007.3,4007.2,0.17451]
[1733586900206,5.32633138,4007.5,4007.0,0.89716632]
[1733586900398,5.32633138,4007.5,4007.4,0.17451]
[1733586901202,5.50083138,4007.5,4007.4,0.17451]
[1733586901509,5.32633138,4007.5,4007.4,0.17451]
[1733586902501,0.4208,4007.5,4007.4,0.17451]
[1733586902806,5.32633138,4007.5,4007.4,0.17451]
[1733586903409,0.4208,4007.5,4007.4,0.17451]
[1733586906110,3.36077115,4007.5,4007.4,1.07167632]
[1733586906311,0.4208,4007.5,4007.4,1.07167632]
[1733586907502,0.4208,4007.5,4007.4,0.17451]
[1733586907904,3.53443245,4007.5,4007.4,0.17451]
[1733586908104,3.35993245,4007.5,4007.4,0.17451]
[1733586911805,0.4208,4007.5,4007.4,0.17451]
[1733586914415,4.02613245,4007.7,4007.6,0.1745]
[1733586914618,4.46023245,4007.7,4007.6,0.1745]
[1733586915215,4.63472245,4007.7,4007.6,0.1745]
[1733586917410,4.63472245,4007.7,4007.5,0.1745]
[1733586917411,0.1745,4007.6,4007.5,0.1745]
[1733586917712,4.63473245,4007.7,4007.6,0.1745]
[1733586918011,4.46023245,4007.7,4007.3,0.89716632]
[1733586918208,3.11363245,4007.6,4007.4,0.17451]
[1733586919015,0.1745,4007.6,4007.3,0.89716632]
[1733586919321,4.46023245,4007.7,4007.6,0.1745]
[1733586919521,4.46023245,4007.7,4007.6,1.07166632]
[1733586920015,4.46023245,4007.7,4007.6,0.1745]
[1733586920318,3.96673245,4007.7,4007.6,0.1745]
[1733586920515,3.79223245,4007.7,4007.6,0.1745]
[1733586920823,3.96672245,4007.7,4007.6,0.1745]
[1733586922419,0.1745,4007.6,4007.5,0.1745]
[1733586922613,2.23857245,4007.7,4007.4,0.89716632]
[1733586922817,3.92079981,4009.1,4007.6,5.87182851]
[1733586923015,4.09522981,4009.2,4009.0,0.89716632]
[1733586923219,0.17443,4009.1,4009.0,0.89716632]
[1733586923714,0.17444,4009.0,4008.7,0.89716632]
[1733586923921,0.62304,4008.9,4008.7,0.89716632]
[1733586924115,1.06224,4008.9,4008.7,0.89716632]
[1733586924321,0.8878,4008.9,4008.5,0.4433]
[1733586924523,0.17445,4008.8,4008.7,0.89716632]
[1733586924718,0.8878,4008.9,4008.7,0.89716632]
[1733586925812,3.2078,4009.9,4008.8,5.24981357]
[1733586926012,3.2078,4009.9,4009.5,1.07157632]
[1733586926221,7.12859981,4010.7,4009.5,1.07157632]
[1733586926416,7.12859981,4010.7,4009.5,1.96717632]
[1733586926417,0.668,4010.6,4009.5,1.96717632]
[1733586926825,0.17437,4010.5,4009.5,1.96717632]
[1733586927027,0.668,4010.6,4009.5,1.96717632]
[1733586927229,0.17438,4010.3,4009.5,1.50451]
[1733586927421,0.17438,4010.3,4009.5,2.40167632]
[1733586928428,0.668,4010.6,4009.5,2.40167632]
[1733586928623,0.17438,4010.2,4009.5,3.4442372]
[1733586928928,0.17439,4010.1,4009.5,3.4442372]
[1733586929128,0.4149,4010.1,4009.5,3.4442372]
[1733586929529,0.17439,4010.0,4009.5,3.4442372]
[1733586930024,0.4149,4010.1,4009.5,3.4442372]
[1733586930223,0.17439,4010.0,4009.5,3.4442372]
[1733586930422,0.4149,4010.1,4009.5,3.4442372]
[1733586930621,0.27509,4009.6,4009.5,1.9397272]
[1733586930932,3.2078,4011.2,4009.5,8.8794544]
[1733586931230,3.2078,4011.2,4010.3,1.9397272]
[1733586931421,0.17437,4010.5,4010.3,1.9397272]
[1733586931627,0.667,4011.1,4010.3,1.9397272]
[1733586932133,0.17437,4010.6,4010.3,1.9397272]
[1733586932332,0.667,4011.1,4010.3,2.1141072]
[1733586932333,0.17436,4010.7,4010.3,2.1141072]
[1733586932722,0.17438,4010.4,4010.3,1.9397272]
[1733586933235,0.4588,4010.6,4010.0,3.2078]
[1733586933526,0.17438,4010.4,4010.1,0.17439]
[1733586933731,0.667,4011.0,4010.0,3.2078]
[1733586933932,0.17438,4010.4,4010.3,1.9397272]
[1733586935438,3.2078,4011.1,4010.0,1.9397272]
[1733586935630,0.19635264,4011.2,4010.8,1.9397272]
[1733586935932,3.2078,4011.6,4010.7,3.2078]
[1733586936127,3.2078,4011.6,4010.5,0.17437]
[1733586936128,0.17436,4010.9,4010.5,0.17437]
[1733586936333,0.4266,4011.1,4010.4,1.9397272]
[1733586936533,0.17436,4010.8,4010.4,2.1140972]
[1733586936728,0.17436,4010.8,4010.4,1.9397272]
[1733586937128,1.03975,4011.1,4010.8,0.17435]
[1733586937345,0.8654,4011.1,4010.8,1.9397272]
[1733586937536,0.17435,4010.9,4010.8,1.9397272]
[1733586938836,0.17437,4010.5,4010.4,1.9397272]
[1733586939131,0.17438,4010.3,4010.2,3.2078]
[1733586939331,1.10291,4010.8,4010.0,1.9397272]
[1733586939332,0.17439,4010.1,4010.0,1.9397272]
[1733586939929,0.1744,4009.8,4009.6,3.2078]
[1733586940130,0.1744,4009.8,4009.7,1.9397272]
[1733586940530,1.5821,4010.2,4009.6,3.2078]
[1733586940939,0.17442,4009.4,4009.3,1.9397272]
[1733586941138,0.17442,4009.5,4009.3,1.9397272]
[1733586941339,0.59392,4009.4,4009.3,1.9397272]
[1733586941636,0.59392,4009.4,4009.1,3.2078]
[1733586941637,0.17443,4009.2,4009.1,3.2078]
[1733586944939,0.4193,4009.3,4008.2,3.6294]
[1733586945243,0.17446,4008.4,4008.3,18.1]
[1733586945841,0.667,4008.8,4008.0,1.9397272]
[1733586945842,0.4541,4008.7,4008.0,1.9397272]
[1733586946040,0.17445,4008.6,4008.0,1.9397272]
[1733586946340,0.17448,4008.1,4008.0,18.1]
[1733586946841,0.17448,4008.0,4007.7,3.2078]
[1733586947037,0.4541,4008.7,4007.7,3.2078]
[1733586947235,0.4541,4008.7,4007.8,18.1]
[1733586947434,0.17448,4007.9,4007.8,18.1]
[1733586947836,0.17449,4007.8,4007.6,1.9397272]
[1733586948032,0.4541,4007.8,4007.6,2.1142272]
[1733586948537,0.4541,4007.8,4007.6,1.9397272]
[1733586948942,0.62859,4007.8,4007.6,1.9397272]
[1733586949840,0.17449,4007.7,4007.4,18.1]
[1733586950143,0.4541,4007.8,4007.4,18.1]
[1733586950349,0.62859,4007.8,4007.4,18.2745]
[1733586950545,0.17449,4007.7,4007.4,18.2745]